[Event "World Junior Chess Championship U20 2022"]
[White "Asllani, Dorian"]
[Black "Bournel, Antoine"]
[WhiteFideId "1341332"]
[BlackFideId "26093553"]
[WhiteElo "2202"]
[BlackElo "2402"]
[Result "1/2-1/2"]
[Round "03"]
[TimeControl "5400+30"]
[Date "2022.10.13"]
[WhiteClock "0:16:49"]
[BlackClock "0:11:08"]

1. d4 {[%clk 1:30:57]}  Nf6 {[%clk 1:25:16]} 2. c4 {[%clk 1:31:13]}  e6 {[%clk 1:25:31]} 3. Nc3 {[%clk 1:31:30]}  Bb4 {[%clk 1:25:36]} 4. Qc2 {[%clk 1:31:26]}  d5 {[%clk 1:24:12]} 5. cxd5 {[%clk 1:31:16]}  exd5 {[%clk 1:23:17]} 6. Bg5 {[%clk 1:26:25]}  h6 {[%clk 1:21:53]} 7. Bh4 {[%clk 1:26:35]}  Nc6 {[%clk 1:20:54]} 8. e3 {[%clk 1:24:23]}  g5 {[%clk 1:20:17]} 9. Bg3 {[%clk 1:24:44]}  h5 {[%clk 1:20:16]} 10. Bd3 {[%clk 1:05:20]}  h4 {[%clk 1:14:28]} 11. Be5 {[%clk 1:05:37]}  Qe7 {[%clk 1:13:58]} 12. a3 {[%clk 0:51:21]}  Bxc3+ {[%clk 1:12:11]} 13. Qxc3 {[%clk 0:51:06]}  Nxe5 {[%clk 1:06:39]} 14. dxe5 {[%clk 0:51:22]}  Ne4 {[%clk 1:06:25]} 15. Bxe4 {[%clk 0:37:01]}  dxe4 {[%clk 1:05:59]} 16. Ne2 {[%clk 0:34:10]}  Bg4 {[%clk 1:03:18]} 17. Qd4 {[%clk 0:30:56]}  h3 {[%clk 0:51:27]} 18. Qxe4 {[%clk 0:22:12]}  hxg2 {[%clk 0:46:28]} 19. Rg1 {[%clk 0:16:53]}  Bxe2 {[%clk 0:42:46]} 20. Kxe2 {[%clk 0:14:56]}  Rxh2 {[%clk 0:40:04]} 21. Qxb7 {[%clk 0:14:45]}  Rd8 {[%clk 0:38:47]} 22. Rxg2 {[%clk 0:10:20]}  Rxg2 {[%clk 0:36:37]} 23. Qxg2 {[%clk 0:10:37]}  Qxe5 {[%clk 0:36:16]} 24. Qc6+ {[%clk 0:10:29]}  Kf8 {[%clk 0:34:28]} 25. Qc3 {[%clk 0:07:58]}  Qf5 {[%clk 0:29:37]} 26. Qc4 {[%clk 0:06:44]}  g4 {[%clk 0:28:36]} 27. Ke1 {[%clk 0:05:10]}  g3 {[%clk 0:26:37]} 28. fxg3 {[%clk 0:04:59]}  Qf3 {[%clk 0:26:05]} 29. Qf4 {[%clk 0:04:32]}  Qh1+ {[%clk 0:25:55]} 30. Qf1 {[%clk 0:04:56]}  Qh2 {[%clk 0:25:37]} 31. Qf2 {[%clk 0:05:07]}  Qh1+ {[%clk 0:25:48]} 32. Qf1 {[%clk 0:05:32]}  Qe4 {[%clk 0:21:53]} 33. Qe2 {[%clk 0:04:25]}  Rd3 {[%clk 0:20:04]} 34. Kf2 {[%clk 0:04:54]}  Qd5 {[%clk 0:18:13]} 35. Ke1 {[%clk 0:05:23]}  c5 {[%clk 0:13:30]} 36. Rc1 {[%clk 0:04:48]}  c4 {[%clk 0:11:14]} 37. Rc3 {[%clk 0:04:06]}  Qh1+ {[%clk 0:10:15]} 38. Kf2 {[%clk 0:04:35]}  Rd1 {[%clk 0:06:45]} 39. Rxc4 {[%clk 0:00:31]}  Rg1 {[%clk 0:03:54]} 40. Rc8+ {[%clk 0:00:33]}  Ke7 {[%clk 0:04:08]} 41. Rc7+ {[%clk 0:22:18]}  Kd8 {[%clk 0:30:52]} 42. Rc8+ {[%clk 0:15:37]}  Kxc8 {[%clk 0:21:57]} 43. Qa6+ {[%clk 0:15:29]}  Kd8 {[%clk 0:15:37]} 44. Qd6+ {[%clk 0:15:33]}  Ke8 {[%clk 0:15:38]} 45. Qb8+ {[%clk 0:14:57]}  Ke7 {[%clk 0:14:44]} 46. Qc7+ {[%clk 0:13:11]}  Kf6 {[%clk 0:12:06]} 47. Qf4+ {[%clk 0:13:10]}  Kg6 {[%clk 0:11:57]} 48. Qg4+ {[%clk 0:13:25]}  Kf6 {[%clk 0:11:57]} 49. Qf4+ {[%clk 0:13:49]}  Ke6 {[%clk 0:12:15]} 50. Qc4+ {[%clk 0:14:01]}  Kd6 {[%clk 0:11:24]} 51. Qd4+ {[%clk 0:13:38]}  Ke6 {[%clk 0:09:58]} 52. Qc4+ {[%clk 0:13:50]}  Ke7 {[%clk 0:09:58]} 53. Qc7+ {[%clk 0:14:13]}  Kf8 {[%clk 0:09:55]} 54. Qd8+ {[%clk 0:14:34]}  Kg7 {[%clk 0:10:20]} 55. Qg5+ {[%clk 0:15:00]}  Kh8 {[%clk 0:10:09]} 56. Qf6+ {[%clk 0:15:07]}  Kg8 {[%clk 0:10:30]} 57. Qg5+ {[%clk 0:15:33]}  Kh7 {[%clk 0:10:48]} 58. Qf5+ {[%clk 0:15:57]}  Kg8 {[%clk 0:11:01]} 59. Qg5+ {[%clk 0:16:23]}  Kh8 {[%clk 0:11:08]} 60. Qf6+ {[%clk 0:16:49]}  Kg8 {[%clk 0:11:08]} 1/2-1/2


[Site "http://www.chessbomb.com"]

[Event "World Junior Chess Championship U20 2022"]
[White "Peyrer, Konstantin"]
[Black "Casadio, Niccolo`"]
[WhiteFideId "1640879"]
[BlackFideId "2827951"]
[WhiteElo "2402"]
[BlackElo "2201"]
[Result "1-0"]
[Round "03"]
[TimeControl "5400+30"]
[Date "2022.10.13"]
[WhiteClock "0:53:37"]
[BlackClock "0:34:53"]

1. d4 {[%clk 1:30:48]}  e6 {[%clk 1:30:54]} 2. Bf4 {[%clk 1:31:03]}  Nf6 {[%clk 1:31:18]} 3. e3 {[%clk 1:31:28]}  d5 {[%clk 1:31:43]} 4. c3 {[%clk 1:31:52]}  Bd6 {[%clk 1:31:57]} 5. Bg3 {[%clk 1:32:12]}  O-O {[%clk 1:32:19]} 6. Nd2 {[%clk 1:32:36]}  b6 {[%clk 1:32:36]} 7. Ngf3 {[%clk 1:32:50]}  Bb7 {[%clk 1:32:57]} 8. Bd3 {[%clk 1:32:50]}  c5 {[%clk 1:33:21]} 9. Ne5 {[%clk 1:32:21]}  Nc6 {[%clk 1:33:44]} 10. O-O {[%clk 1:27:36]}  Bxe5 {[%clk 1:26:57]} 11. dxe5 {[%clk 1:27:51]}  Nd7 {[%clk 1:27:19]} 12. f4 {[%clk 1:27:14]}  f5 {[%clk 1:25:12]} 13. exf6 {[%clk 1:24:40]}  Nxf6 {[%clk 1:23:36]} 14. e4 {[%clk 1:24:33]}  Qe8 {[%clk 1:22:59]} 15. Qe2 {[%clk 1:19:10]}  Nh5 {[%clk 1:15:25]} 16. Rae1 {[%clk 1:16:51]}  Nxg3 {[%clk 1:12:28]} 17. hxg3 {[%clk 1:16:13]}  Qd7 {[%clk 1:09:16]} 18. e5 {[%clk 1:13:29]}  g6 {[%clk 1:05:56]} 19. Qg4 {[%clk 1:12:07]}  Rae8 {[%clk 1:05:59]} 20. Nf3 {[%clk 1:10:59]}  a6 {[%clk 1:02:41]} 21. Kh2 {[%clk 1:08:12]}  b5 {[%clk 0:59:58]} 22. Rd1 {[%clk 1:04:27]}  Ne7 {[%clk 0:56:55]} 23. Ng5 {[%clk 1:04:07]}  Nf5 {[%clk 0:56:57]} 24. Bxf5 {[%clk 1:04:32]}  exf5 {[%clk 0:55:42]} 25. Qh3 {[%clk 1:03:56]}  h5 {[%clk 0:47:38]} 26. Ne4 {[%clk 1:03:24]}  Qc6 {[%clk 0:46:36]} 27. Nd6 {[%clk 1:01:41]}  Re6 {[%clk 0:46:34]} 28. Nxb7 {[%clk 0:56:06]}  Qxb7 {[%clk 0:46:54]} 29. Qh4 {[%clk 0:56:32]}  Qa8 {[%clk 0:41:54]} 30. Rd2 {[%clk 0:56:44]}  Rd8 {[%clk 0:42:03]} 31. g4 {[%clk 0:55:14]}  hxg4 {[%clk 0:41:43]} 32. Kg3 {[%clk 0:55:17]}  Kg7 {[%clk 0:39:57]} 33. Rh1 {[%clk 0:55:41]}  Rh8 {[%clk 0:39:36]} 34. Qxh8+ {[%clk 0:56:05]}  Qxh8 {[%clk 0:40:01]} 35. Rxh8 {[%clk 0:56:30]}  Kxh8 {[%clk 0:40:25]} 36. Rxd5 {[%clk 0:56:55]}  Kg7 {[%clk 0:40:17]} 37. Rxc5 {[%clk 0:56:49]}  Kh6 {[%clk 0:39:17]} 38. Rd5 {[%clk 0:55:28]}  Rc6 {[%clk 0:38:56]} 39. Rd1 {[%clk 0:54:53]}  Rc4 {[%clk 0:38:20]} 40. Rd4 {[%clk 0:53:40]}  Rc6 {[%clk 0:38:42]} 41. Kf2 {[%clk 0:54:02]}  a5 {[%clk 0:38:01]} 42. Ke3 {[%clk 0:53:35]}  Kh5 {[%clk 0:38:02]} 43. g3 {[%clk 0:53:57]}  Kh6 {[%clk 0:37:37]} 44. Kd2 {[%clk 0:52:57]}  Kh5 {[%clk 0:37:18]} 45. Rd8 {[%clk 0:52:34]}  Kh6 {[%clk 0:37:38]} 46. Rd5 {[%clk 0:52:59]}  b4 {[%clk 0:36:53]} 47. Rxa5 {[%clk 0:51:31]}  bxc3+ {[%clk 0:37:14]} 48. bxc3 {[%clk 0:51:57]}  Rb6 {[%clk 0:37:39]} 49. Ra8 {[%clk 0:50:31]}  Rb2+ {[%clk 0:37:55]} 50. Kd3 {[%clk 0:50:43]}  Kg7 {[%clk 0:37:19]} 51. Ra7+ {[%clk 0:50:26]}  Kf8 {[%clk 0:37:17]} 52. e6 {[%clk 0:50:35]}  Rg2 {[%clk 0:37:29]} 53. Kd4 {[%clk 0:50:59]}  Re2 {[%clk 0:35:30]} 54. Kd5 {[%clk 0:50:59]}  g5 {[%clk 0:35:45]} 55. Rf7+ {[%clk 0:51:42]}  Ke8 {[%clk 0:35:39]} 56. fxg5 {[%clk 0:52:04]}  Rxa2 {[%clk 0:35:16]} 57. g6 {[%clk 0:52:29]}  Ra5+ {[%clk 0:35:19]} 58. Kc4 {[%clk 0:52:51]}  f4 {[%clk 0:35:19]} 59. g7 {[%clk 0:53:12]}  Rg5 {[%clk 0:34:53]} 60. gxf4 {[%clk 0:53:37]} 1-0


[Site "http://www.chessbomb.com"]

[Event "World Junior Chess Championship U20 2022"]
[White "Stankovic, Dragan"]
[Black "Di Benedetto, Edoardo"]
[WhiteFideId "14408740"]
[BlackFideId "875740"]
[WhiteElo "2181"]
[BlackElo "2396"]
[Result "0-1"]
[Round "03"]
[TimeControl "5400+30"]
[Date "2022.10.13"]
[WhiteClock "0:01:23"]
[BlackClock "0:02:28"]

1. e4 {[%clk 1:30:57]}  e6 {[%clk 1:30:56]} 2. d4 {[%clk 1:31:18]}  d5 {[%clk 1:31:22]} 3. Bd3 {[%clk 1:31:41]}  dxe4 {[%clk 1:31:22]} 4. Bxe4 {[%clk 1:32:02]}  Nf6 {[%clk 1:32:05]} 5. Bf3 {[%clk 1:32:24]}  c5 {[%clk 1:32:21]} 6. Ne2 {[%clk 1:32:44]}  Nc6 {[%clk 1:32:37]} 7. Be3 {[%clk 1:32:54]}  cxd4 {[%clk 1:32:59]} 8. Nxd4 {[%clk 1:33:18]}  Ne5 {[%clk 1:33:16]} 9. Nc3 {[%clk 1:32:40]}  Be7 {[%clk 1:28:00]} 10. Ndb5 {[%clk 1:23:25]}  Nxf3+ {[%clk 1:22:45]} 11. Qxf3 {[%clk 1:22:49]}  a6 {[%clk 1:17:23]} 12. Rd1 {[%clk 1:17:28]}  Bd7 {[%clk 1:13:05]} 13. Nd6+ {[%clk 1:15:38]}  Bxd6 {[%clk 1:13:05]} 14. Rxd6 {[%clk 1:15:58]}  Qc7 {[%clk 1:03:05]} 15. Rd2 {[%clk 1:09:29]}  Bc6 {[%clk 1:01:45]} 16. Qh3 {[%clk 1:03:43]}  O-O {[%clk 1:01:33]} 17. O-O {[%clk 1:03:40]}  e5 {[%clk 0:55:12]} 18. Bg5 {[%clk 0:53:07]}  Ne4 {[%clk 0:49:42]} 19. Nxe4 {[%clk 0:52:21]}  Bxe4 {[%clk 0:49:46]} 20. a3 {[%clk 0:41:11]}  Qc6 {[%clk 0:46:10]} 21. c3 {[%clk 0:34:51]}  h6 {[%clk 0:43:36]} 22. Be3 {[%clk 0:34:38]}  Rfe8 {[%clk 0:41:07]} 23. Rfd1 {[%clk 0:34:05]}  Re6 {[%clk 0:41:08]} 24. f3 {[%clk 0:33:39]}  Bg6 {[%clk 0:41:22]} 25. Qh4 {[%clk 0:33:01]}  Rae8 {[%clk 0:32:12]} 26. Rd8 {[%clk 0:32:36]}  Kh7 {[%clk 0:30:51]} 27. Rxe8 {[%clk 0:32:31]}  Rxe8 {[%clk 0:30:40]} 28. Rd8 {[%clk 0:29:01]}  f5 {[%clk 0:29:39]} 29. Rxe8 {[%clk 0:28:29]}  Qxe8 {[%clk 0:29:46]} 30. f4 {[%clk 0:25:38]}  Qa4 {[%clk 0:28:56]} 31. Qe1 {[%clk 0:25:04]}  exf4 {[%clk 0:29:01]} 32. Bd4 {[%clk 0:25:19]}  Qe8 {[%clk 0:20:04]} 33. Qe5 {[%clk 0:25:21]}  Qd7 {[%clk 0:16:54]} 34. Qxf4 {[%clk 0:25:32]}  Bf7 {[%clk 0:17:16]} 35. Qe5 {[%clk 0:24:18]}  Bd5 {[%clk 0:17:27]} 36. g3 {[%clk 0:21:44]}  Qf7 {[%clk 0:17:03]} 37. h4 {[%clk 0:20:54]}  Bc6 {[%clk 0:16:22]} 38. Kf2 {[%clk 0:19:56]}  Qg6 {[%clk 0:16:32]} 39. Qf4 {[%clk 0:19:17]}  Qh5 {[%clk 0:15:02]} 40. Ke3 {[%clk 0:18:39]}  Bb5 {[%clk 0:12:26]} 41. Qf3 {[%clk 0:14:41]}  Qe8+ {[%clk 0:11:53]} 42. Kd2 {[%clk 0:14:56]}  Qe6 {[%clk 0:10:49]} 43. a4 {[%clk 0:04:53]}  Bc6 {[%clk 0:06:16]} 44. Qf4 {[%clk 0:00:50]}  Bxa4 {[%clk 0:04:43]} 45. Qe5 {[%clk 0:29:25]}  Qf7 {[%clk 0:33:01]} 46. Ke3 {[%clk 0:28:59]}  Qg6 {[%clk 0:32:07]} 47. Kf2 {[%clk 0:28:04]}  Bc6 {[%clk 0:31:30]} 48. Ke3 {[%clk 0:28:07]}  Qg4 {[%clk 0:30:23]} 49. Qf4 {[%clk 0:27:50]}  Qh5 {[%clk 0:30:18]} 50. Qe5 {[%clk 0:24:45]}  Qf3+ {[%clk 0:29:28]} 51. Kd2 {[%clk 0:25:10]}  Qg4 {[%clk 0:29:45]} 52. Qf4 {[%clk 0:25:04]}  Qh5 {[%clk 0:29:25]} 53. Qe5 {[%clk 0:25:19]}  Qg6 {[%clk 0:29:47]} 54. Ke3 {[%clk 0:22:38]}  Bb5 {[%clk 0:28:31]} 55. b4 {[%clk 0:19:57]}  Qg4 {[%clk 0:27:18]} 56. Kd2 {[%clk 0:20:10]}  Ba4 {[%clk 0:26:39]} 57. Ke3 {[%clk 0:19:23]}  Bc2 {[%clk 0:25:51]} 58. Kf2 {[%clk 0:19:17]}  Be4 {[%clk 0:25:22]} 59. Ke1 {[%clk 0:19:22]}  Qg6 {[%clk 0:25:08]} 60. Kf2 {[%clk 0:19:24]}  Bc6 {[%clk 0:18:52]} 61. Ke3 {[%clk 0:19:03]}  Bh1 {[%clk 0:18:34]} 62. Kf2 {[%clk 0:18:35]}  Be4 {[%clk 0:18:58]} 63. Ke3 {[%clk 0:18:37]}  b6 {[%clk 0:19:14]} 64. Kf2 {[%clk 0:17:41]}  a5 {[%clk 0:15:28]} 65. bxa5 {[%clk 0:17:36]}  bxa5 {[%clk 0:15:52]} 66. Qxa5 {[%clk 0:17:19]}  f4 {[%clk 0:16:11]} 67. gxf4 {[%clk 0:16:35]}  Qg2+ {[%clk 0:16:26]} 68. Ke1 {[%clk 0:15:59]}  Qh1+ {[%clk 0:15:27]} 69. Ke2 {[%clk 0:14:50]}  Qf3+ {[%clk 0:15:24]} 70. Ke1 {[%clk 0:14:27]}  Qxf4 {[%clk 0:15:21]} 71. Qd8 {[%clk 0:14:23]}  Qg3+ {[%clk 0:12:47]} 72. Kd2 {[%clk 0:13:42]}  Qg2+ {[%clk 0:09:12]} 73. Ke1 {[%clk 0:12:59]}  Qg3+ {[%clk 0:08:01]} 74. Kd2 {[%clk 0:13:09]}  Qf4+ {[%clk 0:07:56]} 75. Ke1 {[%clk 0:11:46]}  Qc1+ {[%clk 0:07:40]} 76. Ke2 {[%clk 0:11:33]}  Qc2+ {[%clk 0:07:58]} 77. Ke1 {[%clk 0:11:22]}  Qb1+ {[%clk 0:08:00]} 78. Kd2 {[%clk 0:11:30]}  Qb7 {[%clk 0:06:36]} 79. Qf8 {[%clk 0:09:26]}  Qd7 {[%clk 0:05:57]} 80. Qf4 {[%clk 0:09:25]}  Qe6 {[%clk 0:04:29]} 81. Qg3 {[%clk 0:09:10]}  Qf7 {[%clk 0:04:05]} 82. Qe5 {[%clk 0:09:05]}  Qg6 {[%clk 0:04:09]} 83. Ke3 {[%clk 0:08:52]}  Bb1 {[%clk 0:02:28]} 84. Kf2 {[%clk 0:08:15]}  Qg4 {[%clk 0:02:31]} 85. Qg3 {[%clk 0:08:18]}  Qf5+ {[%clk 0:02:39]} 86. Kg1 {[%clk 0:07:31]}  Qf7 {[%clk 0:02:22]} 87. Qf2 {[%clk 0:06:28]}  Bf5 {[%clk 0:02:10]} 88. Qg3 {[%clk 0:06:39]}  Be4 {[%clk 0:01:58]} 89. Kh2 {[%clk 0:06:13]}  Qe7 {[%clk 0:01:55]} 90. Kg1 {[%clk 0:06:12]}  Bd5 {[%clk 0:01:47]} 91. Qe5 {[%clk 0:05:54]}  Qd7 {[%clk 0:01:54]} 92. Kh2 {[%clk 0:05:40]}  Bb7 {[%clk 0:01:48]} 93. Qg3 {[%clk 0:04:33]}  Qf7 {[%clk 0:02:10]} 94. Kg1 {[%clk 0:04:40]}  Bc6 {[%clk 0:02:10]} 95. Qg4 {[%clk 0:04:13]}  Bd7 {[%clk 0:01:40]} 96. Qg3 {[%clk 0:04:24]}  Bf5 {[%clk 0:01:51]} 97. Kh2 {[%clk 0:04:34]}  Qb7 {[%clk 0:01:56]} 98. Qe5 {[%clk 0:04:36]}  Be4 {[%clk 0:01:59]} 99. Kg3 {[%clk 0:04:43]}  Bb1 {[%clk 0:01:51]} 100. Kh2 {[%clk 0:04:56]}  Qf7 {[%clk 0:02:07]} 101. Kg3 {[%clk 0:04:54]}  Bf5 {[%clk 0:02:12]} 102. Kh2 {[%clk 0:05:07]}  Be6 {[%clk 0:01:49]} 103. Kg3 {[%clk 0:05:11]}  Bd5 {[%clk 0:02:13]} 104. Kh2 {[%clk 0:05:21]}  Bb7 {[%clk 0:02:36]} 105. Qg3 {[%clk 0:03:31]}  Qa2+ {[%clk 0:02:54]} 106. Qf2 {[%clk 0:03:43]}  Qd5 {[%clk 0:03:12]} 107. Qg1 {[%clk 0:03:34]}  Qa2+ {[%clk 0:02:26]} 108. Qf2 {[%clk 0:03:42]}  Qb1 {[%clk 0:02:05]} 109. Qg1 {[%clk 0:02:47]}  Qc2+ {[%clk 0:02:28]} 110. Qf2 {[%clk 0:03:06]}  Qe4 {[%clk 0:02:50]} 111. Be3 {[%clk 0:01:12]}  Qe5+ {[%clk 0:02:41]} 112. Qf4 {[%clk 0:01:18]}  Qxc3 {[%clk 0:02:02]} 113. Qf5+ {[%clk 0:01:29]}  Kg8 {[%clk 0:02:00]} 114. Qe6+ {[%clk 0:01:00]}  Kh8 {[%clk 0:02:17]} 115. Qe8+ {[%clk 0:00:40]}  Kh7 {[%clk 0:02:45]} 116. h5 {[%clk 0:00:43]}  Qc2+ {[%clk 0:02:35]} 117. Kg3 {[%clk 0:00:50]}  Qg2+ {[%clk 0:02:55]} 118. Kh4 {[%clk 0:01:02]}  Be4 {[%clk 0:01:47]} 119. Qe5 {[%clk 0:01:21]}  Qh1+ {[%clk 0:02:01]} 120. Kg3 {[%clk 0:01:09]}  Qf3+ {[%clk 0:02:25]} 121. Kh4 {[%clk 0:01:23]}  Bf5 {[%clk 0:02:28]} 0-1


[Site "http://www.chessbomb.com"]

[Event "World Junior Chess Championship U20 2022"]
[White "Lumachi, Gabriele"]
[Black "Brahami, Lamine"]
[WhiteFideId "2817247"]
[BlackFideId "7905637"]
[WhiteElo "2387"]
[BlackElo "2188"]
[Result "1/2-1/2"]
[Round "03"]
[TimeControl "5400+30"]
[Date "2022.10.13"]
[WhiteClock "0:03:52"]
[BlackClock "0:00:48"]

1. d4 {[%clk 1:30:56]}  Nf6 {[%clk 1:30:42]} 2. Nf3 {[%clk 1:31:18]}  g6 {[%clk 1:30:36]} 3. Nc3 {[%clk 1:31:39]}  Bg7 {[%clk 1:28:54]} 4. e4 {[%clk 1:32:02]}  d6 {[%clk 1:28:54]} 5. Be3 {[%clk 1:32:27]}  O-O {[%clk 1:29:21]} 6. Qd2 {[%clk 1:32:49]}  c6 {[%clk 1:26:18]} 7. Bh6 {[%clk 1:33:11]}  b5 {[%clk 1:22:47]} 8. Bd3 {[%clk 1:33:34]}  Bg4 {[%clk 1:22:04]} 9. h4 {[%clk 1:33:57]}  Bxf3 {[%clk 1:13:11]} 10. gxf3 {[%clk 1:34:22]}  Nh5 {[%clk 1:13:27]} 11. Ne2 {[%clk 1:29:49]}  e5 {[%clk 1:09:14]} 12. Bxg7 {[%clk 1:15:13]}  Kxg7 {[%clk 1:08:56]} 13. f4 {[%clk 1:15:33]}  Nd7 {[%clk 1:00:58]} 14. f5 {[%clk 1:13:04]}  a6 {[%clk 0:53:00]} 15. O-O-O {[%clk 1:05:39]}  c5 {[%clk 0:48:06]} 16. dxc5 {[%clk 1:01:05]}  dxc5 {[%clk 0:44:57]} 17. Nc3 {[%clk 0:52:51]}  Qa5 {[%clk 0:35:09]} 18. Kb1 {[%clk 0:48:48]}  Ndf6 {[%clk 0:31:40]} 19. Be2 {[%clk 0:45:33]}  Nf4 {[%clk 0:26:13]} 20. Qe3 {[%clk 0:43:52]}  c4 {[%clk 0:20:54]} 21. Nd5 {[%clk 0:43:13]}  N4xd5 {[%clk 0:12:21]} 22. exd5 {[%clk 0:43:20]}  c3 {[%clk 0:11:43]} 23. bxc3 {[%clk 0:37:01]}  Rac8 {[%clk 0:09:47]} 24. h5 {[%clk 0:37:25]}  Rxc3 {[%clk 0:07:43]} 25. h6+ {[%clk 0:34:56]}  Kg8 {[%clk 0:07:58]} 26. Qxe5 {[%clk 0:23:08]}  Rxc2 {[%clk 0:06:22]} 27. Bc4 {[%clk 0:23:16]}  Qc3 {[%clk 0:01:15]} 28. Qxc3 {[%clk 0:22:38]}  Rxc3 {[%clk 0:01:41]} 29. Bb3 {[%clk 0:22:30]}  a5 {[%clk 0:01:41]} 30. fxg6 {[%clk 0:22:01]}  hxg6 {[%clk 0:00:53]} 31. d6 {[%clk 0:19:41]}  a4 {[%clk 0:00:55]} 32. h7+ {[%clk 0:17:04]}  Kh8 {[%clk 0:00:54]} 33. Bd5 {[%clk 0:16:37]}  b4 {[%clk 0:00:49]} 34. Rh4 {[%clk 0:15:53]}  Nxd5 {[%clk 0:00:37]} 35. Rxd5 {[%clk 0:16:17]}  Rd8 {[%clk 0:00:36]} 36. d7 {[%clk 0:04:10]}  Rc7 {[%clk 0:00:40]} 37. Rxb4 {[%clk 0:04:35]}  Kxh7 {[%clk 0:00:48]} 38. Kb2 {[%clk 0:03:52]} 1/2-1/2


[Site "http://www.chessbomb.com"]

[Event "World Junior Chess Championship U20 2022"]
[White "Cotic, Borna"]
[Black "Chukavin, Kirill"]
[WhiteFideId "14542307"]
[BlackFideId "4503023"]
[WhiteElo "2133"]
[BlackElo "2384"]
[Result "0-1"]
[Round "03"]
[TimeControl "5400+30"]
[Date "2022.10.13"]
[WhiteClock "0:00:32"]
[BlackClock "0:01:00"]

1. e4 {[%clk 1:22:43]}  c5 {[%clk 1:30:43]} 2. Nf3 {[%clk 1:22:31]}  e6 {[%clk 1:30:49]} 3. c4 {[%clk 1:22:41]}  Nc6 {[%clk 1:30:30]} 4. d4 {[%clk 1:22:53]}  cxd4 {[%clk 1:30:39]} 5. Nxd4 {[%clk 1:23:16]}  Bc5 {[%clk 1:30:35]} 6. Nb3 {[%clk 1:23:27]}  Bb4+ {[%clk 1:30:51]} 7. Bd2 {[%clk 1:23:48]}  a5 {[%clk 1:31:05]} 8. Bxb4 {[%clk 1:05:10]}  axb4 {[%clk 1:31:28]} 9. Bd3 {[%clk 0:59:28]}  Nf6 {[%clk 1:31:26]} 10. O-O {[%clk 0:59:44]}  O-O {[%clk 1:31:07]} 11. N1d2 {[%clk 0:58:58]}  b6 {[%clk 1:27:42]} 12. Nf3 {[%clk 0:57:14]}  e5 {[%clk 1:26:09]} 13. Ne1 {[%clk 0:53:57]}  d6 {[%clk 1:17:19]} 14. Nc2 {[%clk 0:52:44]}  Nd7 {[%clk 1:17:07]} 15. Ne3 {[%clk 0:51:37]}  Nc5 {[%clk 1:14:32]} 16. Nd5 {[%clk 0:45:43]}  Be6 {[%clk 1:08:55]} 17. Qd2 {[%clk 0:42:05]}  Qh4 {[%clk 0:38:05]} 18. Nxb6 {[%clk 0:24:51]}  Ra6 {[%clk 0:31:06]} 19. Nd5 {[%clk 0:24:10]}  Rc8 {[%clk 0:16:54]} 20. f3 {[%clk 0:23:04]}  Qd8 {[%clk 0:14:20]} 21. Rfd1 {[%clk 0:11:47]}  Rca8 {[%clk 0:06:21]} 22. Nc1 {[%clk 0:07:24]}  Qb8 {[%clk 0:02:42]} 23. Bf1 {[%clk 0:04:50]}  Ra5 {[%clk 0:02:18]} 24. Rb1 {[%clk 0:04:24]}  f5 {[%clk 0:01:25]} 25. Ne3 {[%clk 0:02:18]}  fxe4 {[%clk 0:00:47]} 26. Qxd6 {[%clk 0:02:28]}  Qb6 {[%clk 0:01:00]} 27. Nb3 {[%clk 0:00:31]}  Rd8 {[%clk 0:00:50]} 28. Nxa5 {[%clk 0:00:39]}  Rxd6 {[%clk 0:01:03]} 29. Rxd6 {[%clk 0:01:07]}  Nd3 {[%clk 0:01:18]} 30. Bxd3 {[%clk 0:00:41]}  Qxe3+ {[%clk 0:01:37]} 31. Kh1 {[%clk 0:01:04]}  exf3 {[%clk 0:00:33]} 32. Bf1 {[%clk 0:00:32]}  Nd4 {[%clk 0:00:41]} 33. Nb3 {[%clk 0:00:32]}  Ne2 {[%clk 0:01:00]} 0-1


[Site "http://www.chessbomb.com"]

[Event "World Junior Chess Championship U20 2022"]
[White "Ballesteros Cardenas, Leonardo"]
[Black "Gatineau, Yovann"]
[WhiteFideId "3428141"]
[BlackFideId "26028999"]
[WhiteElo "2121"]
[BlackElo "2375"]
[Result "0-1"]
[Round "03"]
[TimeControl "5400+30"]
[Date "2022.10.13"]
[WhiteClock "0:25:01"]
[BlackClock "0:20:13"]

1. d4 {[%clk 1:29:39]}  Nf6 {[%clk 1:25:56]} 2. c4 {[%clk 1:29:43]}  e6 {[%clk 1:26:01]} 3. Nc3 {[%clk 1:29:45]}  Bb4 {[%clk 1:26:26]} 4. e3 {[%clk 1:29:16]}  O-O {[%clk 1:26:41]} 5. Bd3 {[%clk 1:29:38]}  d5 {[%clk 1:26:23]} 6. Nf3 {[%clk 1:29:50]}  b6 {[%clk 1:26:34]} 7. O-O {[%clk 1:29:57]}  Bb7 {[%clk 1:26:54]} 8. a3 {[%clk 1:29:43]}  Bxc3 {[%clk 1:25:53]} 9. bxc3 {[%clk 1:30:01]}  dxc4 {[%clk 1:26:19]} 10. Bxc4 {[%clk 1:30:21]}  c5 {[%clk 1:26:46]} 11. Qe2 {[%clk 1:24:25]}  Nbd7 {[%clk 1:23:01]} 12. Bd3 {[%clk 1:17:40]}  Ne4 {[%clk 1:20:54]} 13. Bb2 {[%clk 1:17:35]}  Qc7 {[%clk 1:11:45]} 14. Rac1 {[%clk 1:14:25]}  Rfd8 {[%clk 1:07:49]} 15. Rfd1 {[%clk 1:00:29]}  Rac8 {[%clk 1:07:11]} 16. Nd2 {[%clk 1:00:13]}  Ndf6 {[%clk 0:56:11]} 17. Nxe4 {[%clk 0:59:32]}  Bxe4 {[%clk 0:52:38]} 18. Bxe4 {[%clk 0:57:48]}  Nxe4 {[%clk 0:53:02]} 19. f3 {[%clk 0:58:08]}  Nd6 {[%clk 0:52:44]} 20. e4 {[%clk 0:31:53]}  b5 {[%clk 0:52:41]} 21. Ra1 {[%clk 0:21:05]}  Qa5 {[%clk 0:41:12]} 22. dxc5 {[%clk 0:16:55]}  Nc4 {[%clk 0:38:57]} 23. Rd4 {[%clk 0:15:02]}  e5 {[%clk 0:38:57]} 24. Rd5 {[%clk 0:15:22]}  Rxd5 {[%clk 0:28:23]} 25. exd5 {[%clk 0:15:51]}  Rxc5 {[%clk 0:28:12]} 26. Rd1 {[%clk 0:13:33]}  Qb6 {[%clk 0:26:25]} 27. Kh1 {[%clk 0:13:47]}  Qd6 {[%clk 0:26:26]} 28. Bc1 {[%clk 0:10:46]}  Rxd5 {[%clk 0:26:39]} 29. Rxd5 {[%clk 0:10:58]}  Qxd5 {[%clk 0:26:57]} 30. h3 {[%clk 0:11:18]}  h6 {[%clk 0:26:47]} 31. Kh2 {[%clk 0:10:42]}  a5 {[%clk 0:26:25]} 32. Qc2 {[%clk 0:10:06]}  Qd7 {[%clk 0:22:16]} 33. Qe4 {[%clk 0:06:28]}  f5 {[%clk 0:21:48]} 34. Qa8+ {[%clk 0:06:15]}  Kh7 {[%clk 0:21:42]} 35. Qf8 {[%clk 0:05:16]}  e4 {[%clk 0:20:24]} 36. fxe4 {[%clk 0:04:51]}  fxe4 {[%clk 0:20:42]} 37. Qf2 {[%clk 0:00:40]}  Qd6+ {[%clk 0:19:38]} 38. g3 {[%clk 0:00:39]}  Kg8 {[%clk 0:11:01]} 39. h4 {[%clk 0:00:37]}  Qe5 {[%clk 0:10:43]} 40. Qe2 {[%clk 0:00:32]}  e3 {[%clk 0:05:10]} 41. a4 {[%clk 0:00:59]}  Qxc3 {[%clk 0:03:34]} 42. Qg4 {[%clk 0:01:18]}  Qc2+ {[%clk 0:27:25]} 43. Kh3 {[%clk 0:31:42]}  b4 {[%clk 0:27:31]} 44. Qc8+ {[%clk 0:23:17]}  Kh7 {[%clk 0:26:56]} 45. Bb2 {[%clk 0:23:44]}  Qe4 {[%clk 0:19:24]} 46. Bxg7 {[%clk 0:23:26]}  Qh1+ {[%clk 0:19:38]} 47. Kg4 {[%clk 0:23:50]}  Qe4+ {[%clk 0:20:02]} 48. Kh3 {[%clk 0:24:02]}  Kxg7 {[%clk 0:20:26]} 49. Qd7+ {[%clk 0:24:20]}  Kf6 {[%clk 0:20:30]} 50. Qd8+ {[%clk 0:24:49]}  Ke5 {[%clk 0:19:37]} 51. Qh8+ {[%clk 0:24:59]}  Kd5 {[%clk 0:19:57]} 52. Qd8+ {[%clk 0:25:01]}  Kc5 {[%clk 0:20:13]} 0-1


[Site "http://www.chessbomb.com"]